lending/lending_fUSD_20260124
["ID","MTS","AMOUNT","RATE_DAILY","PERIOD"]
[403247820,1769278624623,-218.46380298,0.00010552,2]
[403247821,1769278627575,-328.58081363,0.00010552,2]
[403247822,1769278665861,-233.21668653,0.00010552,2]
[403247823,1769278667439,-155.03186655,0.00010552,2]
[403247824,1769278671180,-230.77829554,0.00010552,2]
[403247825,1769278673974,-389.35788943,0.00010552,2]
[403247826,1769278677674,-325.94039195,0.00010552,2]
[403247827,1769278682003,150.0,0.00010551,2]
[403247829,1769278682333,-173.76893513,0.00010552,2]
[403247833,1769278684683,-182.90599654,0.00010552,2]
[403247834,1769278685924,-280.40560413,0.00010552,2]
[403247835,1769278688731,-445.04373616,0.00010552,2]
[403247836,1769278689351,261.0246558,0.00010452,2]
[403247837,1769278691551,-484.01642094,0.00010552,2]
[403247838,1769278693947,-302.46509455,0.00010552,2]
[403247839,1769278695430,-179.75030864,0.00010552,2]
[403247840,1769278699346,-281.5813444,0.00010552,2]
[403247841,1769278703133,-588.36629673,0.00010552,2]
[403247842,1769278704560,-157.99542452,0.00010552,2]
[403247843,1769278706715,-157.99542452,0.00010552,2]
[403247844,1769278708909,-384.12171462,0.00010552,2]
[403247845,1769278711015,-548.87319478,0.00010552,2]
[403247846,1769278714072,-155.03186656,0.00010552,2]
[403247847,1769278716234,-160.48661795,0.00010552,2]
[403247848,1769278717780,-319.213865,0.00010552,2]
[403247849,1769278728697,4950.408485,0.00010499,2]
[403247850,1769278741500,300.0,0.00010551,2]
[403247873,1769278774206,1042.90230909,0.00010539,2]
[403247886,1769278794633,588.36629673,0.00010452,2]
[403247888,1769278801652,300.0,0.00010551,2]
[403247889,1769278801730,157.30825338,0.00010551,2]
[403247890,1769278801759,1042.69174662,0.00010551,2]
[403247892,1769278803670,236.0,0.00010552,2]
[403247897,1769278805902,500.0,0.00010551,2]
[403247898,1769278805962,500.0,0.00010551,2]
[403247899,1769278806075,500.0,0.00010551,2]
[403247901,1769278806150,500.0,0.00010551,2]
[403247902,1769278806345,500.0,0.00010551,2]
[403247903,1769278806422,381.89408262,0.00010551,2]
[403247904,1769278806539,500.0,0.00010551,2]
[403247908,1769278807719,500.0,0.00010551,2]
[403247954,1769278830067,174.0164372,0.00010452,2]
[403247973,1769278861597,300.0,0.00010551,2]
[403247974,1769278862608,150.0,0.00010551,2]
[403247977,1769278876199,367.86373149,0.00010551,2]
[403247978,1769278876263,193.79334131,0.00010551,2]
[403247979,1769278876303,508.68371921,0.00010551,2]
[403247980,1769278892984,3145.06694155,0.00010341,2]
[403247981,1769278893007,2156.08405845,0.00010341,2]
[403247982,1769278893104,391.096,0.00010341,2]
[403247984,1769278915714,500.0,0.00010551,2]
[403247985,1769278916152,505.17359471,0.00010551,2]
[403247986,1769278916759,232.82713829,0.00010551,2]
[403247987,1769278917009,500.0,0.00010551,2]
[403247988,1769278917405,167.32585783,0.00010551,2]
[403247989,1769278917734,1832.81367101,0.00010551,2]
[403247990,1769278921266,300.0,0.00010551,2]
[403247995,1769278933360,1832.81367101,0.00010551,2]
[403247996,1769278933397,500.0,0.00010551,2]
[403247997,1769278933464,220.4589315,0.00010551,2]
[403247998,1769278933500,158.56715665,0.00010551,2]
[403247999,1769278940295,500.0,0.00010552,2]
[403248000,1769278940636,202.84992055,0.00010552,2]
[403248001,1769278940659,297.15007945,0.00010552,2]
[403248002,1769278941323,500.0,0.00010552,2]
[403248003,1769278942016,500.0,0.00010552,2]
[403248004,1769278943042,500.0,0.00010552,2]
[403248005,1769278943833,500.0,0.00010552,2]
[403248006,1769278950826,500.0,0.00010551,2]
[403248007,1769278950869,1832.81367101,0.00010551,2]
[403248008,1769278950909,500.0,0.00010551,2]
[403248009,1769278950970,282.85703987,0.00010551,2]
[403248010,1769278951008,1832.81367101,0.00010551,2]
[403248011,1769278951109,497.54017078,0.00010551,2]
[403248012,1769278951148,1832.81367101,0.00010551,2]
[403248013,1769278951183,424.02169687,0.00010551,2]
[403248014,1769278951206,75.97830313,0.00010551,2]
[403248015,1769278951435,1832.81367101,0.00010551,2]
[403248016,1769278951490,1832.81367101,0.00010551,2]
[403248017,1769278951525,500.0,0.00010551,2]
[403248018,1769278951574,1832.81367101,0.00010551,2]
[403248019,1769278951641,1832.81367101,0.00010551,2]
[403248020,1769278951697,500.0,0.00010551,2]
[403248021,1769278952043,1592.77701283,0.00010551,2]
[403248022,1769278952068,240.03665818,0.00010551,2]
[403248023,1769278952298,1832.81367101,0.00010551,2]
[403248024,1769278952338,500.0,0.00010551,2]
[403248025,1769278952382,1832.81367101,0.00010551,2]
[403248026,1769278952627,1832.81367101,0.00010551,2]
[403248027,1769278952793,1832.81367101,0.00010551,2]
[403248028,1769278952874,1832.81367101,0.00010551,2]
[403248029,1769278952918,95.90498677,0.00010551,2]
[403248030,1769278952942,1736.90868424,0.00010551,2]
[403248031,1769278953489,1832.81367101,0.00010551,2]
[403248032,1769278953535,1832.81367101,0.00010551,2]
[403248033,1769278953591,1832.81367101,0.00010551,2]
[403248034,1769278953683,1832.81367101,0.00010551,2]
[403248035,1769278953750,931.84663172,0.00010551,2]
[403248036,1769278953775,900.96703929,0.00010551,2]
[403248037,1769278953818,1832.81367101,0.00010551,2]
[403248038,1769278953860,1832.81367101,0.00010551,2]
[403248039,1769278953903,1832.81367101,0.00010551,2]
[403248040,1769278953996,1832.81367101,0.00010551,2]
[403248041,1769278954057,1767.78827667,0.00010551,2]
[403248042,1769278954081,65.02539434,0.00010551,2]
[403248043,1769278954125,1832.81367101,0.00010551,2]
[403248044,1769278954168,1832.81367101,0.00010551,2]
[403248045,1769278954215,1832.81367101,0.00010551,2]
[403248046,1769278954280,1832.81367101,0.00010551,2]
[403248047,1769278954343,1832.81367101,0.00010551,2]
[403248048,1769278954682,1832.81367101,0.00010551,2]
[403248049,1769278954840,1832.81367101,0.00010551,2]
[403248050,1769278954887,1832.81367101,0.00010551,2]
[403248051,1769278954948,1832.81367101,0.00010551,2]
[403248052,1769278954992,835.94164495,0.00010551,2]
[403248053,1769278955017,996.87202606,0.00010551,2]
[403248054,1769278955077,1832.81367101,0.00010551,2]
[403248055,1769278955126,1832.81367101,0.00010551,2]
[403248056,1769278955167,1832.81367101,0.00010551,2]
[403248057,1769278955248,1832.81367101,0.00010551,2]
[403248058,1769278955334,1671.8832899,0.00010551,2]
[403248059,1769278958450,-160.93038111,0.00010551,2]
[403248060,1769278958481,-1832.81367101,0.00010551,2]
[403248061,1769278958513,-1832.81367101,0.00010551,2]
[403248062,1769278958543,-514.08088273,0.00010551,2]
[403248063,1769278958586,-1318.73278828,0.00010551,2]
[403248064,1769278958620,-1832.81367101,0.00010551,2]
[403248065,1769278958650,-1832.81367101,0.00010551,2]
[403248093,1769279272989,-422.80011664,0.0001045,2]
[403248094,1769279273017,-422.80011664,0.00010451,2]
[403248095,1769279273045,-214.79667541,0.00010452,2]
[403248096,1769279273074,-178.77712539,0.00010452,2]
[403248097,1769279273103,-422.80011664,0.00010452,2]
[403248098,1769279273133,-174.01643718,0.00010452,2]
[403248099,1769279273165,-250.0,0.00010496,2]
[403248100,1769279273196,-500.0,0.0001054,2]
[403248101,1769279273226,-420.31744888,0.0001054,2]
[403248102,1769279273258,-500.0,0.0001054,2]
[403248103,1769279273288,-435.61650598,0.0001054,2]
[403248104,1769279273322,-989.71938235,0.0001054,2]
[403248105,1769279275886,-989.71938235,0.0001054,2]
[403248106,1769279275918,-989.71938235,0.0001054,2]
[403248107,1769279275950,-989.71938235,0.0001054,2]
[403248108,1769279275982,-989.71938235,0.0001054,2]
[403248109,1769279276014,-989.71938235,0.0001054,2]
[403248110,1769279278838,-989.71938235,0.0001054,2]
[403248111,1769279278872,-989.71938235,0.0001054,2]
[403248112,1769279278909,-989.71938235,0.0001054,2]
[403248113,1769279278943,-989.71938235,0.0001054,2]
[403248114,1769279278975,-989.71938235,0.0001054,2]
[403248115,1769279282121,-300.0,0.00010539,2]
[403248116,1769279282155,-989.71938235,0.0001054,2]
[403248117,1769279282188,-989.71938235,0.0001054,2]
[403248118,1769279282220,-989.71938235,0.0001054,2]
[403248119,1769279282613,-989.71938235,0.0001054,2]
[403248120,1769279282646,-492.53555885,0.0001054,2]
[403248136,1769279431411,-300.0,0.0001044,2]
[403248138,1769279431420,-124.72961453,0.0001044,2]
[403248139,1769279431431,-1075.27038547,0.0001044,2]
[403248140,1769279431440,-150.0,0.0001044,2]
[403248141,1769279431450,-560475.05890096,0.00010441,2]
[403248142,1769279431461,-34747.07754818,0.00010441,2]
[403248143,1769279431471,-41178.7179114,0.00010441,2]
[403248144,1769279431482,-3727.50947885,0.00010441,2]
[403248145,1769279431495,-5351.0,0.00010441,2]
[403248146,1769279431505,-1182.79273477,0.00010441,2]
[403248147,1769279431516,-3644.00137046,0.00010441,2]
[403248153,1769279432021,-900.0,0.00010441,2]
[403248154,1769279433308,-348793.84205538,0.00010441,2]
[403248155,1769279433320,-174.01643718,0.00010452,2]
[403248156,1769279433332,-497.1838235,0.0001054,2]
[403248157,1769279433343,-989.71938235,0.0001054,2]
[403248158,1769279433355,-989.71938235,0.0001054,2]
[403248159,1769279433365,-989.71938235,0.0001054,2]
[403248160,1769279433376,-989.71938235,0.0001054,2]
[403248161,1769279433385,-989.71938235,0.0001054,2]
[403248162,1769279433395,-989.71938235,0.0001054,2]
[403248163,1769279433405,-989.71938235,0.0001054,2]
[403248164,1769279433414,-989.71938235,0.0001054,2]
[403248165,1769279433423,-989.71938235,0.0001054,2]
[403248166,1769279433433,-989.71938235,0.0001054,2]
[403248167,1769279433443,-989.71938235,0.0001054,2]
[403248168,1769279433452,-989.71938235,0.0001054,2]
[403248169,1769279433461,-989.71938235,0.0001054,2]
[403248170,1769279433471,-989.71938235,0.0001054,2]
[403248171,1769279433480,-989.71938235,0.0001054,2]
[403248172,1769279433489,-989.71938235,0.0001054,2]
[403248173,1769279433499,-989.71938235,0.0001054,2]
[403248174,1769279433509,-989.71938235,0.0001054,2]
[403248175,1769279433521,-989.71938235,0.0001054,2]
[403248176,1769279433530,-989.71938235,0.0001054,2]
[403248177,1769279433540,-989.71938235,0.0001054,2]
[403248178,1769279433550,-989.71938235,0.0001054,2]
[403248179,1769279433561,-989.71938235,0.0001054,2]
[403248180,1769279433570,-989.71938235,0.0001054,2]
[403248181,1769279433580,-989.71938235,0.0001054,2]
[403248182,1769279433590,-989.71938235,0.0001054,2]
[403248183,1769279433600,-989.71938235,0.0001054,2]
[403248184,1769279433614,-989.71938235,0.0001054,2]
[403248185,1769279433625,-989.71938235,0.0001054,2]
[403248186,1769279433635,-989.71938235,0.0001054,2]
[403248187,1769279433644,-989.71938235,0.0001054,2]
[403248188,1769279433654,-989.71938235,0.0001054,2]
[403248189,1769279433665,-989.71938235,0.0001054,2]
[403248190,1769279433675,-989.71938235,0.0001054,2]
[403248191,1769279433684,-989.71938235,0.0001054,2]
[403248192,1769279433693,-989.71938235,0.0001054,2]
[403248193,1769279433701,-989.71938235,0.0001054,2]
[403248194,1769279433710,-989.71938235,0.0001054,2]
[403248195,1769279433720,-989.71938235,0.0001054,2]
[403248196,1769279433729,-989.71938235,0.0001054,2]
[403248197,1769279433739,-974.25501699,0.0001054,2]
[403248198,1769279433748,-974.25501699,0.0001054,2]
[403248199,1769279433759,-974.25501699,0.0001054,2]
[403248200,1769279433768,-974.25501699,0.0001054,2]
[403248201,1769279433777,-974.25501699,0.0001054,2]
[403248202,1769279433787,-974.25501699,0.0001054,2]
[403248203,1769279433796,-974.25501699,0.0001054,2]
[403248204,1769279433805,-974.25501699,0.0001054,2]
[403248205,1769279433814,-974.25501699,0.0001054,2]
[403248206,1769279433824,-974.25501699,0.0001054,2]
[403248207,1769279433833,-974.25501699,0.0001054,2]
[403248208,1769279433842,-974.25501699,0.0001054,2]
[403248209,1769279433852,-974.25501699,0.0001054,2]
[403248210,1769279433862,-974.25501699,0.0001054,2]
[403248211,1769279433871,-974.25501699,0.0001054,2]
[403248212,1769279433880,-974.25501699,0.0001054,2]
[403248213,1769279433889,-974.25501699,0.0001054,2]
[403248214,1769279433898,-974.25501699,0.0001054,2]
[403248215,1769279433908,-974.25501699,0.0001054,2]
[403248216,1769279433917,-974.25501699,0.0001054,2]
[403248217,1769279433927,-974.25501699,0.0001054,2]
[403248218,1769279433936,-974.25501699,0.0001054,2]
[403248219,1769279433945,-974.25501699,0.0001054,2]
[403248220,1769279433954,-974.25501699,0.0001054,2]
[403248221,1769279433964,-974.25501699,0.0001054,2]
[403248222,1769279433973,-974.25501699,0.0001054,2]
[403248223,1769279433983,-974.25501699,0.0001054,2]
[403248224,1769279433992,-974.25501699,0.0001054,2]
[403248225,1769279434002,-974.25501699,0.0001054,2]
[403248226,1769279434011,-974.25501699,0.0001054,2]
[403248227,1769279434021,-974.255017,0.0001054,2]
[403248228,1769279434031,-974.25501699,0.0001054,2]
[403248229,1769279434040,-500.0,0.0001054,2]
[403248230,1769279434050,-37578.80984952,0.00010541,2]
[403248231,1769279434059,-500.0,0.00010551,2]
[403248232,1769279434069,-257.50461204,0.00010551,2]
[403248233,1769279434078,-500.0,0.00010551,2]
[403248234,1769279434087,-500.0,0.00010551,2]
[403248235,1769279434097,-167.12810048,0.00010551,2]
[403248236,1769279434107,-168.72542555,0.00010551,2]
[403248237,1769279434116,-356.07860345,0.00010551,2]
[403248238,1769279434125,-500.0,0.00010551,2]
[403248239,1769279434135,-500.0,0.00010551,2]
[403248240,1769279434144,-500.0,0.00010551,2]
[403248241,1769279434153,-200.0,0.00010552,2]
[403248242,1769279434163,-500.0,0.00010552,2]
[403248243,1769279434173,-306.72319279,0.00010552,2]
[403248244,1769279434183,-500.0,0.00010552,2]
[403248245,1769279434192,-500.0,0.00010552,2]
[403248246,1769279434201,-500.0,0.00010552,2]
[403248247,1769279434210,-500.0,0.00010552,2]
[403248248,1769279434220,-500.0,0.00010552,2]
[403248249,1769279434230,-151.0,0.00010552,2]
[403248250,1769279434239,-500.0,0.00010552,2]
[403248251,1769279434249,-151.0,0.00010552,2]
[403248252,1769279434258,-500.0,0.00010552,2]
[403248253,1769279434267,-151.0,0.00010552,2]
[403248254,1769279434277,-500.0,0.00010552,2]
[403248255,1769279434286,-151.0,0.00010552,2]
[403248256,1769279434295,-500.0,0.00010552,2]
[403248257,1769279434305,-151.0,0.00010552,2]
[403248258,1769279434315,-523.67734565,0.00010552,2]
[403248259,1769279434324,-151.0,0.00010552,2]
[403248260,1769279434333,-151.0,0.00010552,2]
[403248261,1769279434343,-500.0,0.00010552,2]
[403248262,1769279434352,-151.0,0.00010552,2]
[403248263,1769279434361,-500.0,0.00010552,2]
[403248264,1769279434371,-151.0,0.00010552,2]
[403248265,1769279434380,-500.0,0.00010552,2]
[403248266,1769279434389,-151.0,0.00010552,2]
[403248267,1769279434399,-500.0,0.00010552,2]
[403248268,1769279434408,-151.0,0.00010552,2]
[403248269,1769279434418,-500.0,0.00010552,2]
[403248270,1769279434427,-151.0,0.00010552,2]
[403248271,1769279434436,-500.0,0.00010552,2]
[403248272,1769279434446,-151.0,0.00010552,2]
[403248273,1769279434455,-500.0,0.00010552,2]
[403248274,1769279434463,-151.0,0.00010552,2]
[403248275,1769279434472,-500.0,0.00010552,2]
[403248276,1769279434481,-151.0,0.00010552,2]
[403248277,1769279434491,-500.0,0.00010552,2]
[403248278,1769279434500,-151.0,0.00010552,2]
[403248279,1769279434509,-500.0,0.00010552,2]
[403248280,1769279434519,-151.0,0.00010552,2]
[403248281,1769279434528,-500.0,0.00010552,2]
[403248282,1769279434538,-151.0,0.00010552,2]
[403248283,1769279434547,-151.0,0.00010552,2]
[403248284,1769279434556,-151.0,0.00010552,2]
[403248285,1769279434564,-200.0,0.00010552,2]
[403248286,1769279434574,-155.87085309,0.00010552,2]
[403248287,1769279434582,-200.0,0.00010552,2]
[403248288,1769279434592,-151.0,0.00010552,2]
[403248289,1769279434602,-151.0,0.00010552,2]
[403248290,1769279434616,-151.0,0.00010552,2]
[403248291,1769279434625,-151.0,0.00010552,2]
[403248292,1769279434633,-151.0,0.00010552,2]
[403248293,1769279434642,-151.0,0.00010552,2]
[403248294,1769279434651,-151.0,0.00010552,2]
[403248295,1769279434661,-151.0,0.00010552,2]
[403248296,1769279434670,-151.0,0.00010552,2]
[403248297,1769279434680,-151.0,0.00010552,2]
[403248298,1769279434689,-151.0,0.00010552,2]
[403248299,1769279434699,-1000.0,0.00010552,2]
[403248300,1769279434708,-972.48,0.00010651,2]
[403248301,1769279434717,-268.40264442,0.000107,2]
[403248302,1769279434726,-1815.48733601,0.000109,2]
[403248303,1769279434735,-972.48,0.00010925,2]
[403248304,1769279434744,-2941.14,0.0001096,2]
[403248305,1769279434753,-10014.89681198,0.00011099,2]
[403248306,1769279434763,-13196.55832874,0.00011099,2]
[403248307,1769279434772,-972.48,0.00011199,2]
[403248308,1769279434781,-13196.5583287,0.0001128,2]
[403248309,1769279434790,-10014.89681194,0.0001128,2]
[403248310,1769279434799,-255.0,0.00011463,2]
[403248311,1769279434808,-972.48,0.00011473,2]
[403248312,1769279434817,-420.0,0.00011479,2]
[403248313,1769279434827,-1680.0,0.00011484,2]
[403248314,1769279434837,-1572.0,0.00011491,2]
[403248315,1769279434847,-195.0,0.00011495,2]
[403248316,1769279434856,-300.0,0.00011497,2]
[403248317,1769279434865,-195.0,0.00011497,2]
[403248318,1769279434874,-195.0,0.00011497,2]
[403248319,1769279434883,-250.0,0.00011497,2]
[403248320,1769279434893,-1815.48733601,0.00011516,2]
[403248321,1769279434902,-250.0,0.00011593,2]
[403248322,1769279434911,-300.0,0.00011594,2]
[403248323,1769279434920,-300.0,0.00011594,2]
[403248324,1769279434929,-195.0,0.00011594,2]
[403248325,1769279434939,-364.78433551,0.00011594,2]
[403248326,1769279434948,-240.69177793,0.00011612,2]
[403248327,1769279434957,-3985.83,0.00011622,2]
[403248328,1769279434966,-214.79667536,0.00011693,2]
[403248329,1769279434975,-972.48,0.00011747,2]
[403248330,1769279434985,-972.48,0.00012021,2]
[403248331,1769279434994,-922.36805587,0.00012097,2]
[403248332,1769279435004,-13196.5583287,0.00012107,2]
[403248333,1769279435013,-10014.89681194,0.00012107,2]
[403248334,1769279435023,-500.0,0.000122,2]
[403248335,1769279435032,-500.0,0.000122,2]
[403248336,1769279435041,-167.94526228,0.000122,2]
[403248337,1769279435050,-173.62225723,0.000122,2]
[403248338,1769279435059,-567.68971129,0.000122,2]
[403248339,1769279435068,-500.0,0.000122,2]
[403248340,1769279435077,-225.21984276,0.000122,2]
[403248341,1769279435087,-500.0,0.000122,2]
[403248342,1769279435096,-500.0,0.000122,2]
[403248343,1769279435105,-500.0,0.000122,2]
[403248344,1769279435115,-582.09385403,0.000122,2]
[403248345,1769279435124,-164.50729817,0.000122,2]
[403248346,1769279435134,-500.0,0.000122,2]
[403248347,1769279435143,-501.22866478,0.000122,2]
[403248348,1769279435153,-177.5178643,0.000122,2]
[403248349,1769279435163,-501.32971868,0.000122,2]
[403248350,1769279435172,-500.0,0.000122,2]
[403248351,1769279435181,-500.0,0.000122,2]
[403248352,1769279435191,-500.0,0.000122,2]
[403248353,1769279435200,-500.0,0.000122,2]
[403248354,1769279435210,-500.0,0.000122,2]
[403248355,1769279435219,-500.0,0.000122,2]
[403248356,1769279435229,-500.0,0.000122,2]
[403248357,1769279435238,-166.2984837,0.000122,2]
[403248358,1769279435248,-170.17092774,0.000122,2]
[403248359,1769279435257,-500.0,0.000122,2]
[403248360,1769279435266,-278.24022797,0.000122,2]
[403248361,1769279435276,-500.0,0.000122,2]
[403248362,1769279435285,-500.0,0.000122,2]
[403248363,1769279435295,-166.22451781,0.000122,2]
[403248364,1769279435304,-500.0,0.000122,2]
[403248365,1769279435314,-500.0,0.000122,2]
[403248366,1769279435323,-500.0,0.000122,2]
[403248367,1769279435332,-500.0,0.000122,2]
[403248368,1769279435341,-500.0,0.000122,2]
[403248369,1769279435350,-500.0,0.000122,2]
[403248370,1769279435359,-500.0,0.000122,2]
[403248371,1769279435368,-169.48430069,0.000122,2]
[403248372,1769279435378,-500.0,0.000122,2]
[403248373,1769279435387,-489.57842878,0.000122,2]
[403248374,1769279435396,-500.75682028,0.000122,2]
[403248375,1769279435406,-500.0,0.000122,2]
[403248376,1769279435415,-500.0,0.000122,2]
[403248377,1769279435423,-500.0,0.000122,2]
[403248378,1769279435433,-500.0,0.000122,2]
[403248379,1769279435442,-217.42155575,0.000122,2]
[403248380,1769279435451,-166.64412679,0.000122,2]
[403248381,1769279435460,-500.0,0.000122,2]
[403248382,1769279435469,-500.0,0.000122,2]
[403248383,1769279435479,-500.0,0.000122,2]
[403248384,1769279435488,-500.0,0.000122,2]
[403248385,1769279435497,-500.0,0.000122,2]
[403248386,1769279435507,-500.0,0.000122,2]
[403248387,1769279435516,-502.79552946,0.000122,2]
[403248388,1769279435525,-163.72504406,0.000122,2]
[403248389,1769279435535,-500.0,0.000122,2]
[403248390,1769279435544,-972.48,0.00012295,2]
[403248391,1769279435553,-10817.47,0.00012335,2]
[403248392,1769279435563,-972.55466997,0.00012569,2]
[403248393,1769279435572,-1815.48733601,0.0001258,2]
[403248394,1769279435582,-433.0,0.00012591,2]
[403248395,1769279435591,-587.0,0.00012621,2]
[403248396,1769279435600,-2351.0,0.00012633,2]
[403248397,1769279435611,-1000.0,0.00012748,2]
[403248398,1769279435621,-1000.0,0.00012748,2]
[403248399,1769279435630,-1000.0,0.00012748,2]
[403248400,1769279435639,-1000.0,0.00012748,2]
[403248401,1769279435648,-1000.0,0.00012748,2]
[403248402,1769279435659,-607.15821099,0.00012748,2]
[403248403,1769279435668,-544.47711737,0.00012748,2]
[403248404,1769279435680,-1000.0,0.00012748,2]
[403248405,1769279435689,-1000.0,0.00012748,2]
[403248406,1769279435700,-505.83466941,0.00012748,2]
[403248407,1769279435711,-1000.0,0.00012748,2]
[403248408,1769279435720,-1000.0,0.00012748,2]
[403248409,1769279435730,-542.33856448,0.00012748,2]
[403248410,1769279435739,-1000.0,0.00012748,2]
[403248411,1769279435748,-1000.0,0.00012748,2]
[403248412,1769279435757,-1000.0,0.00012748,2]
[403248413,1769279435767,-303.1127939,0.00012748,2]
[403248414,1769279435776,-1000.0,0.00012748,2]
[403248415,1769279435786,-1007.32533855,0.00012748,2]
[403248416,1769279435795,-1000.0,0.00012748,2]
[403248417,1769279435804,-1000.0,0.00012748,2]
[403248418,1769279435813,-1000.0,0.00012748,2]
[403248419,1769279435822,-875.92645048,0.00012748,2]
[403248420,1769279435832,-1000.0,0.00012748,2]
[403248421,1769279435841,-239.10627716,0.00012748,2]
[403248422,1769279435850,-1000.0,0.00012748,2]
[403248423,1769279435860,-1000.0,0.00012748,2]
[403248424,1769279435869,-1000.0,0.00012748,2]
[403248425,1769279435878,-1000.0,0.00012748,2]
[403248426,1769279435888,-1000.0,0.00012748,2]
[403248427,1769279435897,-1000.0,0.00012748,2]
[403248428,1769279435906,-1000.0,0.00012748,2]
[403248429,1769279435916,-1000.0,0.00012748,2]
[403248430,1769279435925,-1000.0,0.00012748,2]
[403248431,1769279435934,-1000.0,0.00012748,2]
[403248432,1769279435943,-1000.0,0.00012748,2]
[403248433,1769279435953,-1000.0,0.00012806,2]
[403248434,1769279435962,-1234.01019802,0.00012861,2]
[403248435,1769279435972,-500.0,0.00012878,2]
[403248436,1769279435981,-500.0,0.00012878,2]
[403248437,1769279435990,-151.0,0.00012878,2]
[403248438,1769279436000,-500.0,0.00012878,2]
[403248439,1769279436009,-500.0,0.00012878,2]
[403248440,1769279436018,-500.0,0.00012878,2]
[403248441,1769279436027,-500.0,0.00012878,2]
[403248442,1769279436036,-500.0,0.00012878,2]
[403248443,1769279436046,-5432.0,0.00012878,2]
[403248444,1769279436055,-500.0,0.00012878,2]
[403248445,1769279436065,-500.0,0.00012878,2]
[403248446,1769279436074,-500.0,0.00012878,2]
[403248447,1769279436083,-250.0,0.00012878,2]
[403248448,1769279436093,-500.0,0.00012878,2]
[403248449,1769279436103,-250.0,0.00012878,2]
[403248450,1769279436111,-250.0,0.00012878,2]
[403248451,1769279436120,-250.0,0.00012878,2]
[403248452,1769279436130,-250.0,0.00012878,2]
[403248453,1769279436140,-500.0,0.00012878,2]
[403248454,1769279436150,-500.0,0.00012878,2]
[403248455,1769279436159,-500.0,0.00012878,2]
[403248456,1769279436168,-500.0,0.00012878,2]
[403248457,1769279436178,-500.0,0.00012878,2]
[403248458,1769279436187,-500.0,0.00012878,2]
[403248459,1769279436196,-500.0,0.00012878,2]
[403248460,1769279436206,-500.0,0.00012878,2]
[403248461,1769279436215,-500.0,0.00012878,2]
[403248462,1769279436224,-322.6107,0.00012878,2]
[403248463,1769279436234,-173.60858565,0.00012878,2]
[403248464,1769279436243,-500.0,0.00012878,2]
[403248465,1769279436253,-500.0,0.00012878,2]
[403248466,1769279436262,-854.2589148,0.00012878,2]
[403248467,1769279436271,-250.0,0.00012878,2]
[403248468,1769279436280,-151.0,0.00012878,2]
[403248469,1769279436290,-250.0,0.00012878,2]
[403248470,1769279436299,-250.0,0.00012878,2]
[403248471,1769279436308,-250.0,0.00012878,2]
[403248472,1769279436317,-250.0,0.00012878,2]
[403248473,1769279436327,-301.96560903,0.00012878,2]
[403248474,1769279436336,-855.68236364,0.00012878,2]
[403248475,1769279436345,-500.0,0.00012878,2]
[403248476,1769279436354,-500.0,0.00012878,2]
[403248477,1769279436363,-500.0,0.00012878,2]
[403248478,1769279436373,-743.50770149,0.00012878,2]
[403248479,1769279436382,-500.0,0.00012878,2]
[403248480,1769279436391,-578.20924308,0.00012878,2]
[403248481,1769279436400,-500.0,0.00012878,2]
[403248482,1769279436410,-500.0,0.00012878,2]
[403248483,1769279436420,-500.0,0.00012878,2]
[403248484,1769279436429,-500.0,0.00012878,2]
[403248485,1769279436438,-500.0,0.00012878,2]